[Event "Titled Tuesday Blitz November 08 Early 2022"]
[White "Butolo, Alexandru-Mircea"]
[Black "Zaichenko, Daria"]
[WhiteFideId "1261649"]
[BlackFideId "4197453"]
[WhiteElo "1897"]
[BlackElo "2039"]
[Result "0-1"]
[Round "08"]
[TimeControl "180+1"]
[Date "2022.11.09"]
[WhiteClock "0:00:40"]
[BlackClock "0:01:33"]

1. d4 {[%clk 0:03:00]}  d5 {[%clk 0:02:59]} 2. Bf4 {[%clk 0:03:00]}  Bf5 {[%clk 0:02:55]} 3. e3 {[%clk 0:02:41]}  c6 {[%clk 0:02:54]} 4. c4 {[%clk 0:02:38]}  e6 {[%clk 0:02:43]} 5. Nc3 {[%clk 0:02:34]}  Qb6 {[%clk 0:02:40]} 6. Qc1 {[%clk 0:02:25]}  Nf6 {[%clk 0:02:38]} 7. Nf3 {[%clk 0:02:20]}  Nbd7 {[%clk 0:02:31]} 8. a3 {[%clk 0:02:13]}  a5 {[%clk 0:02:29]} 9. cxd5 {[%clk 0:02:09]}  exd5 {[%clk 0:02:23]} 10. Be2 {[%clk 0:02:06]}  Be7 {[%clk 0:02:22]} 11. O-O {[%clk 0:02:05]}  O-O {[%clk 0:02:21]} 12. h3 {[%clk 0:02:04]}  h6 {[%clk 0:02:21]} 13. Ne5 {[%clk 0:01:48]}  Nxe5 {[%clk 0:02:19]} 14. dxe5 {[%clk 0:01:47]}  Nd7 {[%clk 0:02:15]} 15. Rd1 {[%clk 0:01:45]}  Nc5 {[%clk 0:02:09]} 16. b4 {[%clk 0:00:58]}  Nb3 {[%clk 0:02:03]} 17. Qb2 {[%clk 0:00:51]}  Nxa1 {[%clk 0:02:02]} 18. Na4 {[%clk 0:00:49]}  Qa7 {[%clk 0:01:52]} 19. e4 {[%clk 0:00:46]}  Bxe4 {[%clk 0:01:41]} 20. Be3 {[%clk 0:00:46]}  c5 {[%clk 0:01:42]} 21. bxc5 {[%clk 0:00:44]}  Nc2 {[%clk 0:01:33]} 22. c6 {[%clk 0:00:40]}  Nxe3 {[%clk 0:01:33]} 0-1


[Site "https://www.chess.com"]

[Event "Titled Tuesday Blitz November 08 Early 2022"]
[White "Chigaev, Maksim"]
[Black "Samunenkov, Ihor"]
[WhiteFideId "4108116"]
[BlackFideId "14187086"]
[WhiteElo "2541"]
[BlackElo "2441"]
[Result "0-1"]
[Round "08"]
[TimeControl "180+1"]
[Date "2022.11.08"]
[WhiteClock "0:00:01"]
[BlackClock "0:00:01"]

1. Nf3 {[%clk 0:03:00]}  Nf6 {[%clk 0:02:57]} 2. c4 {[%clk 0:02:59]}  c5 {[%clk 0:02:53]} 3. Nc3 {[%clk 0:02:59]}  Nc6 {[%clk 0:02:52]} 4. g3 {[%clk 0:02:55]}  d5 {[%clk 0:02:50]} 5. cxd5 {[%clk 0:02:55]}  Nxd5 {[%clk 0:02:51]} 6. Bg2 {[%clk 0:02:55]}  g6 {[%clk 0:02:50]} 7. Qb3 {[%clk 0:02:54]}  Ndb4 {[%clk 0:02:02]} 8. a3 {[%clk 0:02:35]}  Be6 {[%clk 0:02:01]} 9. Qd1 {[%clk 0:02:35]}  Nd5 {[%clk 0:01:59]} 10. d3 {[%clk 0:02:25]}  Bg7 {[%clk 0:01:57]} 11. Bd2 {[%clk 0:02:26]}  h6 {[%clk 0:01:52]} 12. Rc1 {[%clk 0:02:25]}  b6 {[%clk 0:01:51]} 13. O-O {[%clk 0:02:23]}  Rc8 {[%clk 0:01:50]} 14. Qa4 {[%clk 0:02:00]}  Qd7 {[%clk 0:01:42]} 15. Rfd1 {[%clk 0:01:38]}  Nxc3 {[%clk 0:01:27]} 16. bxc3 {[%clk 0:01:26]}  O-O {[%clk 0:01:25]} 17. c4 {[%clk 0:01:20]}  Bh3 {[%clk 0:01:14]} 18. Bc3 {[%clk 0:01:09]}  Bxc3 {[%clk 0:01:05]} 19. Rxc3 {[%clk 0:01:10]}  Rfd8 {[%clk 0:01:05]} 20. Rcc1 {[%clk 0:01:05]}  Nd4 {[%clk 0:00:54]} 21. Qxd7 {[%clk 0:01:03]}  Nxe2+ {[%clk 0:00:53]} 22. Kf1 {[%clk 0:01:00]}  Bxg2+ {[%clk 0:00:54]} 23. Kxe2 {[%clk 0:00:54]}  Rxd7 {[%clk 0:00:36]} 24. Ne1 {[%clk 0:00:49]}  Bc6 {[%clk 0:00:35]} 25. Ra1 {[%clk 0:00:48]}  Ba4 {[%clk 0:00:35]} 26. Rd2 {[%clk 0:00:47]}  Rcd8 {[%clk 0:00:34]} 27. f4 {[%clk 0:00:46]}  e5 {[%clk 0:00:26]} 28. fxe5 {[%clk 0:00:38]}  Re7 {[%clk 0:00:23]} 29. Nf3 {[%clk 0:00:37]}  Bc6 {[%clk 0:00:22]} 30. Re1 {[%clk 0:00:37]}  Rde8 {[%clk 0:00:22]} 31. Kf2 {[%clk 0:00:32]}  Bxf3 {[%clk 0:00:22]} 32. Kxf3 {[%clk 0:00:33]}  Rxe5 {[%clk 0:00:23]} 33. Rxe5 {[%clk 0:00:33]}  Rxe5 {[%clk 0:00:23]} 34. a4 {[%clk 0:00:31]}  h5 {[%clk 0:00:18]} 35. a5 {[%clk 0:00:27]}  Kg7 {[%clk 0:00:17]} 36. axb6 {[%clk 0:00:18]}  axb6 {[%clk 0:00:17]} 37. d4 {[%clk 0:00:17]}  cxd4 {[%clk 0:00:16]} 38. Rxd4 {[%clk 0:00:18]}  Re6 {[%clk 0:00:13]} 39. Rd5 {[%clk 0:00:16]}  Rc6 {[%clk 0:00:13]} 40. Rb5 {[%clk 0:00:15]}  Kf6 {[%clk 0:00:12]} 41. Ke3 {[%clk 0:00:15]}  Rxc4 {[%clk 0:00:07]} 42. Rxb6+ {[%clk 0:00:15]}  Kg5 {[%clk 0:00:08]} 43. Kf2 {[%clk 0:00:07]}  Rc2+ {[%clk 0:00:08]} 44. Kg1 {[%clk 0:00:06]}  h4 {[%clk 0:00:03]} 45. gxh4+ {[%clk 0:00:04]}  Kxh4 {[%clk 0:00:04]} 46. Rf6 {[%clk 0:00:04]}  Rc7 {[%clk 0:00:03]} 47. Kg2 {[%clk 0:00:05]}  Kg5 {[%clk 0:00:04]} 48. Ra6 {[%clk 0:00:05]}  f5 {[%clk 0:00:04]} 49. Rb6 {[%clk 0:00:05]}  Rc2+ {[%clk 0:00:04]} 50. Kg1 {[%clk 0:00:04]}  Kh5 {[%clk 0:00:04]} 51. Rf6 {[%clk 0:00:04]}  Rc5 {[%clk 0:00:04]} 52. Kg2 {[%clk 0:00:04]}  g5 {[%clk 0:00:05]} 53. h3 {[%clk 0:00:03]}  Rc2+ {[%clk 0:00:03]} 54. Kf3 {[%clk 0:00:03]}  Rc3+ {[%clk 0:00:03]} 55. Kg2 {[%clk 0:00:03]}  Rc5 {[%clk 0:00:03]} 56. Kg3 {[%clk 0:00:03]}  Rd5 {[%clk 0:00:04]} 57. Kg2 {[%clk 0:00:03]}  Rd2+ {[%clk 0:00:02]} 58. Kf3 {[%clk 0:00:03]}  Rd3+ {[%clk 0:00:02]} 59. Kg2 {[%clk 0:00:03]}  f4 {[%clk 0:00:02]} 60. Rf8 {[%clk 0:00:02]}  Rd2+ {[%clk 0:00:03]} 61. Kf3 {[%clk 0:00:02]}  Rh2 {[%clk 0:00:01]} 62. Rh8+ {[%clk 0:00:02]}  Kg6 {[%clk 0:00:02]} 63. h4 {[%clk 0:00:01]}  Rh3+ {[%clk 0:00:01]} 0-1


[Site "https://www.chess.com"]

[Event "Titled Tuesday Blitz November 08 Early 2022"]
[White "Cruz Mendez, Jean Marco"]
[Black "Avazkhonov, Alikhon"]
[WhiteFideId "3526402"]
[BlackFideId "14208504"]
[WhiteElo "2064"]
[BlackElo "1739"]
[Result "1-0"]
[Round "08"]
[TimeControl "180+1"]
[Date "2022.11.09"]
[WhiteClock "0:01:11"]
[BlackClock "0:00:08"]

1. e4 {[%clk 0:03:00]}  c5 {[%clk 0:02:59]} 2. Nf3 {[%clk 0:03:01]}  d6 {[%clk 0:02:59]} 3. d4 {[%clk 0:03:01]}  cxd4 {[%clk 0:03:00]} 4. Nxd4 {[%clk 0:03:02]}  Nf6 {[%clk 0:03:01]} 5. Nc3 {[%clk 0:03:02]}  a6 {[%clk 0:03:01]} 6. Bg5 {[%clk 0:03:02]}  e6 {[%clk 0:03:01]} 7. f4 {[%clk 0:02:59]}  h6 {[%clk 0:02:56]} 8. Bh4 {[%clk 0:02:59]}  Be7 {[%clk 0:02:56]} 9. Qf3 {[%clk 0:02:53]}  Nbd7 {[%clk 0:02:55]} 10. O-O-O {[%clk 0:02:52]}  Qc7 {[%clk 0:02:55]} 11. Bf2 {[%clk 0:02:39]}  b5 {[%clk 0:02:50]} 12. a3 {[%clk 0:02:38]}  Bb7 {[%clk 0:02:49]} 13. g4 {[%clk 0:02:36]}  g5 {[%clk 0:02:47]} 14. h4 {[%clk 0:02:26]}  gxf4 {[%clk 0:02:43]} 15. Be2 {[%clk 0:02:26]}  Ne5 {[%clk 0:01:46]} 16. Qxf4 {[%clk 0:02:24]}  Nc4 {[%clk 0:01:46]} 17. Bxc4 {[%clk 0:02:20]}  Qxc4 {[%clk 0:01:46]} 18. g5 {[%clk 0:02:12]}  Nd7 {[%clk 0:01:11]} 19. g6 {[%clk 0:01:58]}  Ne5 {[%clk 0:00:27]} 20. gxf7+ {[%clk 0:01:48]}  Nxf7 {[%clk 0:00:28]} 21. Qg4 {[%clk 0:01:47]}  Kd7 {[%clk 0:00:25]} 22. Nd5 {[%clk 0:01:19]}  Bxd5 {[%clk 0:00:21]} 23. b3 {[%clk 0:01:19]}  Ne5 {[%clk 0:00:11]} 24. Qg2 {[%clk 0:01:18]}  Qc3 {[%clk 0:00:08]} 25. exd5 {[%clk 0:01:18]}  exd5 {[%clk 0:00:09]} 26. Qh3+ {[%clk 0:01:11]}  Kc7 {[%clk 0:00:08]} 27. Qxc3+ {[%clk 0:01:11]} 1-0


[Site "https://www.chess.com"]

[Event "Titled Tuesday Blitz November 08 Early 2022"]
[White "Deac, Bogdan-Daniel"]
[Black "Bacrot, Etienne"]
[WhiteFideId "1226380"]
[BlackFideId "605506"]
[WhiteElo "2648"]
[BlackElo "2666"]
[Result "0-1"]
[Round "08"]
[TimeControl "180+1"]
[Date "2022.11.08"]
[WhiteClock "0:00:02"]
[BlackClock "0:00:09"]

1. d4 {[%clk 0:03:00]}  Nf6 {[%clk 0:02:59]} 2. c4 {[%clk 0:03:00]}  c6 {[%clk 0:02:59]} 3. Nf3 {[%clk 0:02:59]}  d5 {[%clk 0:02:59]} 4. Nc3 {[%clk 0:03:00]}  dxc4 {[%clk 0:02:58]} 5. a4 {[%clk 0:03:00]}  Bf5 {[%clk 0:02:57]} 6. Ne5 {[%clk 0:03:00]}  e6 {[%clk 0:02:53]} 7. g3 {[%clk 0:02:54]}  Bb4 {[%clk 0:02:31]} 8. Bg2 {[%clk 0:02:53]}  Ne4 {[%clk 0:02:18]} 9. Bxe4 {[%clk 0:02:52]}  Bxe4 {[%clk 0:02:18]} 10. f3 {[%clk 0:02:52]}  Bg6 {[%clk 0:02:15]} 11. O-O {[%clk 0:02:52]}  c5 {[%clk 0:02:08]} 12. Na2 {[%clk 0:02:50]}  Nc6 {[%clk 0:01:55]} 13. Nxc6 {[%clk 0:02:21]}  bxc6 {[%clk 0:01:56]} 14. Nxb4 {[%clk 0:02:22]}  cxb4 {[%clk 0:01:56]} 15. e4 {[%clk 0:02:22]}  O-O {[%clk 0:01:50]} 16. Be3 {[%clk 0:02:12]}  f5 {[%clk 0:01:49]} 17. Rc1 {[%clk 0:01:59]}  fxe4 {[%clk 0:01:47]} 18. f4 {[%clk 0:01:59]}  Qd5 {[%clk 0:01:41]} 19. Qe2 {[%clk 0:01:58]}  c3 {[%clk 0:01:18]} 20. bxc3 {[%clk 0:01:56]}  b3 {[%clk 0:01:18]} 21. Qa6 {[%clk 0:01:31]}  Rfb8 {[%clk 0:00:58]} 22. c4 {[%clk 0:01:23]}  Qd7 {[%clk 0:00:43]} 23. Rb1 {[%clk 0:01:18]}  Rb4 {[%clk 0:00:40]} 24. Rb2 {[%clk 0:01:06]}  Rab8 {[%clk 0:00:35]} 25. Rc1 {[%clk 0:01:06]}  Bh5 {[%clk 0:00:25]} 26. Qa5 {[%clk 0:01:03]}  Bf3 {[%clk 0:00:25]} 27. Qe5 {[%clk 0:01:02]}  h6 {[%clk 0:00:21]} 28. Bd2 {[%clk 0:00:42]}  R4b7 {[%clk 0:00:21]} 29. a5 {[%clk 0:00:41]}  a6 {[%clk 0:00:21]} 30. Bc3 {[%clk 0:00:37]}  Qf7 {[%clk 0:00:19]} 31. Re1 {[%clk 0:00:31]}  Re8 {[%clk 0:00:19]} 32. Qd6 {[%clk 0:00:30]}  Qc7 {[%clk 0:00:18]} 33. Qc5 {[%clk 0:00:28]}  Qd7 {[%clk 0:00:17]} 34. Rd2 {[%clk 0:00:23]}  Rc8 {[%clk 0:00:16]} 35. Qe5 {[%clk 0:00:14]}  Qf7 {[%clk 0:00:16]} 36. Rb2 {[%clk 0:00:11]}  Kh7 {[%clk 0:00:16]} 37. Qc5 {[%clk 0:00:11]}  Qg6 {[%clk 0:00:16]} 38. Qe5 {[%clk 0:00:10]}  Rf8 {[%clk 0:00:16]} 39. Qc5 {[%clk 0:00:09]}  Rxf4 {[%clk 0:00:16]} 40. Qxc6 {[%clk 0:00:09]}  Rbf7 {[%clk 0:00:16]} 41. Qd6 {[%clk 0:00:09]}  R4f5 {[%clk 0:00:16]} 42. c5 {[%clk 0:00:09]}  Bg4 {[%clk 0:00:16]} 43. h4 {[%clk 0:00:03]}  Bh3 {[%clk 0:00:14]} 44. d5 {[%clk 0:00:03]}  Rf3 {[%clk 0:00:14]} 45. Be5 {[%clk 0:00:02]}  e3 {[%clk 0:00:10]} 46. dxe6 {[%clk 0:00:03]}  Bxe6 {[%clk 0:00:09]} 47. Kh2 {[%clk 0:00:02]}  Rf2+ {[%clk 0:00:09]} 48. Rxf2 {[%clk 0:00:02]}  exf2 {[%clk 0:00:09]} 49. Rf1 {[%clk 0:00:02]}  Bc4 {[%clk 0:00:09]} 0-1


[Site "https://www.chess.com"]

[Event "Titled Tuesday Blitz November 08 Early 2022"]
[White "Devaev, Alexander"]
[Black "Orlov, Georgi"]
[WhiteFideId "4169395"]
[BlackFideId "2011271"]
[WhiteElo "2225"]
[BlackElo "2572"]
[Result "1-0"]
[Round "08"]
[TimeControl "180+1"]
[Date "2022.11.09"]
[WhiteClock "0:00:35"]
[BlackClock "0:00:01"]

1. d4 {[%clk 0:03:00]}  Nf6 {[%clk 0:02:59]} 2. c4 {[%clk 0:03:01]}  Nc6 {[%clk 0:02:59]} 3. Nf3 {[%clk 0:02:57]}  e6 {[%clk 0:02:59]} 4. a3 {[%clk 0:02:56]}  d6 {[%clk 0:02:58]} 5. Nc3 {[%clk 0:02:56]}  g6 {[%clk 0:02:58]} 6. e4 {[%clk 0:02:53]}  Bg7 {[%clk 0:02:58]} 7. h3 {[%clk 0:02:53]}  O-O {[%clk 0:02:58]} 8. Bg5 {[%clk 0:02:54]}  h6 {[%clk 0:02:57]} 9. Be3 {[%clk 0:02:54]}  Re8 {[%clk 0:02:53]} 10. Qd2 {[%clk 0:02:54]}  Kh7 {[%clk 0:02:49]} 11. O-O-O {[%clk 0:02:19]}  d5 {[%clk 0:02:47]} 12. e5 {[%clk 0:02:14]}  Ne4 {[%clk 0:02:42]} 13. Nxe4 {[%clk 0:02:12]}  dxe4 {[%clk 0:02:42]} 14. Nh2 {[%clk 0:02:02]}  Ne7 {[%clk 0:02:15]} 15. g4 {[%clk 0:01:56]}  c5 {[%clk 0:02:10]} 16. f4 {[%clk 0:01:55]}  exf3 {[%clk 0:02:00]} 17. Nxf3 {[%clk 0:01:55]}  cxd4 {[%clk 0:02:00]} 18. Bxd4 {[%clk 0:01:42]}  Nc6 {[%clk 0:01:58]} 19. Bc3 {[%clk 0:01:40]}  Qxd2+ {[%clk 0:01:46]} 20. Rxd2 {[%clk 0:01:40]}  a5 {[%clk 0:01:46]} 21. c5 {[%clk 0:01:30]}  Bf8 {[%clk 0:01:35]} 22. Nd4 {[%clk 0:01:18]}  Bxc5 {[%clk 0:01:24]} 23. Nxc6 {[%clk 0:01:16]}  bxc6 {[%clk 0:01:24]} 24. Bg2 {[%clk 0:01:12]}  Ra6 {[%clk 0:01:08]} 25. Kc2 {[%clk 0:01:08]}  Be7 {[%clk 0:00:52]} 26. Rf1 {[%clk 0:01:04]}  Kg7 {[%clk 0:00:50]} 27. Rfd1 {[%clk 0:01:04]}  a4 {[%clk 0:00:43]} 28. Rd6 {[%clk 0:01:01]}  Kf8 {[%clk 0:00:36]} 29. Rxc6 {[%clk 0:01:00]}  Bb7 {[%clk 0:00:29]} 30. Rxa6 {[%clk 0:00:55]}  Bxa6 {[%clk 0:00:29]} 31. Bc6 {[%clk 0:00:55]}  Rc8 {[%clk 0:00:12]} 32. Bxa4 {[%clk 0:00:51]}  Be2 {[%clk 0:00:11]} 33. Rd2 {[%clk 0:00:51]}  Bf3 {[%clk 0:00:11]} 34. Bb5 {[%clk 0:00:43]}  Rb8 {[%clk 0:00:09]} 35. Bd3 {[%clk 0:00:42]}  Bg5 {[%clk 0:00:07]} 36. Rf2 {[%clk 0:00:42]}  Bd5 {[%clk 0:00:07]} 37. Bxg6 {[%clk 0:00:42]}  Bb3+ {[%clk 0:00:04]} 38. Kb1 {[%clk 0:00:42]}  Rb7 {[%clk 0:00:04]} 39. Bc2 {[%clk 0:00:43]}  Bd5 {[%clk 0:00:03]} 40. Bd2 {[%clk 0:00:40]}  Bh4 {[%clk 0:00:03]} 41. Rf4 {[%clk 0:00:36]}  Ke7 {[%clk 0:00:02]} 42. Rd4 {[%clk 0:00:36]}  Bf2 {[%clk 0:00:01]} 43. Bb4+ {[%clk 0:00:35]} 1-0


[Site "https://www.chess.com"]

[Event "Titled Tuesday Blitz November 08 Early 2022"]
[White "Do Nascimento,Christian Almeida"]
[Black "Matveeva, Olga"]
[WhiteFideId "2143801"]
[BlackFideId "24107018"]
[WhiteElo "2079"]
[BlackElo "2055"]
[Result "1-0"]
[Round "08"]
[TimeControl "180+1"]
[Date "2022.11.09"]
[WhiteClock "0:01:13"]
[BlackClock "0:00:23"]

1. e4 {[%clk 0:03:00]}  c6 {[%clk 0:03:00]} 2. d4 {[%clk 0:02:57]}  d5 {[%clk 0:03:00]} 3. exd5 {[%clk 0:02:58]}  cxd5 {[%clk 0:03:01]} 4. c4 {[%clk 0:02:58]}  Nf6 {[%clk 0:03:00]} 5. Nf3 {[%clk 0:02:58]}  Nc6 {[%clk 0:02:59]} 6. Nc3 {[%clk 0:02:58]}  e6 {[%clk 0:02:59]} 7. a3 {[%clk 0:02:54]}  Be7 {[%clk 0:02:56]} 8. Be2 {[%clk 0:02:53]}  dxc4 {[%clk 0:02:56]} 9. Bxc4 {[%clk 0:02:53]}  O-O {[%clk 0:02:55]} 10. O-O {[%clk 0:02:53]}  b6 {[%clk 0:02:56]} 11. d5 {[%clk 0:02:53]}  exd5 {[%clk 0:02:52]} 12. Nxd5 {[%clk 0:02:52]}  Nxd5 {[%clk 0:02:52]} 13. Bxd5 {[%clk 0:02:49]}  Bb7 {[%clk 0:02:52]} 14. Bf4 {[%clk 0:02:45]}  Na5 {[%clk 0:02:33]} 15. Bxb7 {[%clk 0:02:39]}  Nxb7 {[%clk 0:02:34]} 16. Re1 {[%clk 0:02:37]}  Bf6 {[%clk 0:02:29]} 17. Be5 {[%clk 0:02:29]}  Bxe5 {[%clk 0:02:21]} 18. Nxe5 {[%clk 0:02:30]}  Nc5 {[%clk 0:02:15]} 19. b4 {[%clk 0:02:22]}  Ne6 {[%clk 0:02:04]} 20. Qf3 {[%clk 0:02:12]}  Nd4 {[%clk 0:01:41]} 21. Qe4 {[%clk 0:01:58]}  f5 {[%clk 0:01:13]} 22. Qd3 {[%clk 0:01:45]}  Kh8 {[%clk 0:00:49]} 23. Qc4 {[%clk 0:01:29]}  Rc8 {[%clk 0:00:30]} 24. Nf7+ {[%clk 0:01:22]}  Rxf7 {[%clk 0:00:30]} 25. Qxf7 {[%clk 0:01:22]}  Nc2 {[%clk 0:00:28]} 26. Rad1 {[%clk 0:01:18]}  Nxe1 {[%clk 0:00:22]} 27. Rxd8+ {[%clk 0:01:16]}  Rxd8 {[%clk 0:00:23]} 28. Qe7 {[%clk 0:01:13]} 1-0


[Site "https://www.chess.com"]

[Event "Titled Tuesday Blitz November 08 Early 2022"]
[White "Donchenko, Alexander"]
[Black "Melikyan, Gnel"]
[WhiteFideId "24603295"]
[BlackFideId "54109990"]
[WhiteElo "2572"]
[BlackElo "2138"]
[Result "1/2-1/2"]
[Round "08"]
[TimeControl "180+1"]
[Date "2022.11.09"]
[WhiteClock "0:00:08"]
[BlackClock "0:00:05"]

1. e4 {[%clk 0:02:57]}  e5 {[%clk 0:02:57]} 2. Nf3 {[%clk 0:02:57]}  Nc6 {[%clk 0:02:57]} 3. Bc4 {[%clk 0:02:57]}  Bc5 {[%clk 0:02:57]} 4. O-O {[%clk 0:02:56]}  Nf6 {[%clk 0:02:57]} 5. d3 {[%clk 0:02:57]}  O-O {[%clk 0:02:56]} 6. c3 {[%clk 0:02:57]}  d6 {[%clk 0:02:56]} 7. Re1 {[%clk 0:02:57]}  h6 {[%clk 0:02:54]} 8. h3 {[%clk 0:02:56]}  Re8 {[%clk 0:02:53]} 9. a4 {[%clk 0:02:54]}  a5 {[%clk 0:02:51]} 10. Na3 {[%clk 0:02:52]}  Qe7 {[%clk 0:02:41]} 11. Qb3 {[%clk 0:02:42]}  Bb6 {[%clk 0:02:34]} 12. Be3 {[%clk 0:02:41]}  Bxe3 {[%clk 0:02:32]} 13. Rxe3 {[%clk 0:02:41]}  Nd7 {[%clk 0:02:31]} 14. d4 {[%clk 0:02:40]}  Nb6 {[%clk 0:02:28]} 15. Bb5 {[%clk 0:02:39]}  Bd7 {[%clk 0:02:23]} 16. Rd1 {[%clk 0:02:37]}  exd4 {[%clk 0:02:19]} 17. cxd4 {[%clk 0:02:36]}  Nb4 {[%clk 0:02:19]} 18. Ree1 {[%clk 0:02:17]}  c6 {[%clk 0:02:15]} 19. Bf1 {[%clk 0:02:17]}  c5 {[%clk 0:02:16]} 20. Nb5 {[%clk 0:02:15]}  Be6 {[%clk 0:01:59]} 21. d5 {[%clk 0:02:10]}  Bd7 {[%clk 0:01:58]} 22. e5 {[%clk 0:02:09]}  dxe5 {[%clk 0:01:52]} 23. Nxe5 {[%clk 0:02:09]}  Bf5 {[%clk 0:01:21]} 24. d6 {[%clk 0:02:04]}  Qe6 {[%clk 0:01:20]} 25. Qxe6 {[%clk 0:02:03]}  Rxe6 {[%clk 0:01:19]} 26. Nc7 {[%clk 0:02:03]}  Rd8 {[%clk 0:01:12]} 27. Nxe6 {[%clk 0:02:00]}  Bxe6 {[%clk 0:01:11]} 28. Bb5 {[%clk 0:01:58]}  Nc2 {[%clk 0:01:10]} 29. Re4 {[%clk 0:01:55]}  Nd4 {[%clk 0:01:06]} 30. Rexd4 {[%clk 0:01:53]}  cxd4 {[%clk 0:01:06]} 31. Rxd4 {[%clk 0:01:54]}  f6 {[%clk 0:00:54]} 32. Nd3 {[%clk 0:01:52]}  Nd7 {[%clk 0:00:41]} 33. f4 {[%clk 0:01:37]}  Bf5 {[%clk 0:00:34]} 34. Kf2 {[%clk 0:01:30]}  Kf7 {[%clk 0:00:32]} 35. g4 {[%clk 0:01:26]}  Bxd3 {[%clk 0:00:26]} 36. Bxd3 {[%clk 0:01:26]}  g5 {[%clk 0:00:21]} 37. Bc4+ {[%clk 0:01:23]}  Kf8 {[%clk 0:00:17]} 38. Kf3 {[%clk 0:01:19]}  gxf4 {[%clk 0:00:15]} 39. Kxf4 {[%clk 0:01:19]}  Ne5 {[%clk 0:00:16]} 40. Be6 {[%clk 0:01:14]}  Kg7 {[%clk 0:00:13]} 41. d7 {[%clk 0:01:11]}  Kf8 {[%clk 0:00:12]} 42. Kf5 {[%clk 0:01:10]}  Ke7 {[%clk 0:00:13]} 43. Re4 {[%clk 0:00:59]}  Rf8 {[%clk 0:00:10]} 44. b4 {[%clk 0:00:51]}  axb4 {[%clk 0:00:09]} 45. Rxb4 {[%clk 0:00:52]}  Nc6 {[%clk 0:00:09]} 46. Re4 {[%clk 0:00:48]}  Ne5 {[%clk 0:00:09]} 47. Bd5 {[%clk 0:00:45]}  b6 {[%clk 0:00:07]} 48. Bc6 {[%clk 0:00:45]}  Rg8 {[%clk 0:00:04]} 49. Bb5 {[%clk 0:00:42]}  h5 {[%clk 0:00:04]} 50. gxh5 {[%clk 0:00:29]}  Rg5+ {[%clk 0:00:05]} 51. Kf4 {[%clk 0:00:30]}  Rxh5 {[%clk 0:00:05]} 52. Kg3 {[%clk 0:00:29]}  Rg5+ {[%clk 0:00:05]} 53. Kf2 {[%clk 0:00:29]}  Rh5 {[%clk 0:00:05]} 54. Rd4 {[%clk 0:00:29]}  Rh8 {[%clk 0:00:04]} 55. Kg3 {[%clk 0:00:27]}  Rg8+ {[%clk 0:00:04]} 56. Kf4 {[%clk 0:00:27]}  Rh8 {[%clk 0:00:04]} 57. Rd1 {[%clk 0:00:23]}  Nf7 {[%clk 0:00:03]} 58. Kg3 {[%clk 0:00:21]}  Rg8+ {[%clk 0:00:03]} 59. Kh2 {[%clk 0:00:21]}  Rh8 {[%clk 0:00:03]} 60. Rg1 {[%clk 0:00:17]}  Nd6 {[%clk 0:00:03]} 61. Rg7+ {[%clk 0:00:16]}  Kd8 {[%clk 0:00:03]} 62. Rg6 {[%clk 0:00:13]}  Nxb5 {[%clk 0:00:03]} 63. axb5 {[%clk 0:00:14]}  Ke7 {[%clk 0:00:02]} 64. Rg7+ {[%clk 0:00:13]}  Ke6 {[%clk 0:00:03]} 65. h4 {[%clk 0:00:13]}  Rxh4+ {[%clk 0:00:02]} 66. Kg3 {[%clk 0:00:14]}  Rh8 {[%clk 0:00:03]} 67. Kf4 {[%clk 0:00:14]}  Rd8 {[%clk 0:00:03]} 68. Rg2 {[%clk 0:00:11]}  Rxd7 {[%clk 0:00:04]} 69. Re2+ {[%clk 0:00:12]}  Kf7 {[%clk 0:00:04]} 70. Rc2 {[%clk 0:00:10]}  Rd5 {[%clk 0:00:04]} 71. Rb2 {[%clk 0:00:08]}  Rc5 {[%clk 0:00:04]} 72. Rb1 {[%clk 0:00:07]}  f5 {[%clk 0:00:05]} 73. Rb2 {[%clk 0:00:07]}  Kf6 {[%clk 0:00:05]} 74. Rb4 {[%clk 0:00:07]}  Ke6 {[%clk 0:00:05]} 75. Rb2 {[%clk 0:00:07]}  Rc4+ {[%clk 0:00:06]} 76. Ke3 {[%clk 0:00:08]}  f4+ {[%clk 0:00:06]} 77. Kd3 {[%clk 0:00:07]}  Ra4 {[%clk 0:00:06]} 78. Rc2 {[%clk 0:00:07]}  Rb4 {[%clk 0:00:05]} 79. Rc6+ {[%clk 0:00:06]}  Kd5 {[%clk 0:00:05]} 80. Rxb6 {[%clk 0:00:07]}  Rb3+ {[%clk 0:00:03]} 81. Ke2 {[%clk 0:00:07]}  Kc5 {[%clk 0:00:04]} 82. Rb8 {[%clk 0:00:07]}  Rxb5 {[%clk 0:00:04]} 83. Rxb5+ {[%clk 0:00:07]}  Kxb5 {[%clk 0:00:05]} 84. Kf3 {[%clk 0:00:07]}  Kc4 {[%clk 0:00:05]} 85. Kxf4 {[%clk 0:00:08]} 1/2-1/2


[Site "https://www.chess.com"]